fUSD/lending_fUSD_20240526
["ID","MTS","AMOUNT","RATE_DAILY","PERIOD"]
[327948100,1716693059773,-3116.57,0.0003178,5]
[327948101,1716693059782,-500.0,0.0003178,5]
[327948102,1716693059792,-1518.22,0.0003178,5]
[327948103,1716693059801,-1537.79,0.0003178,5]
[327948104,1716693059811,-500.0,0.0003178,5]
[327948105,1716693059821,-500.0,0.0003178,5]
[327948106,1716693059831,-569.38,0.0003178,5]
[327948107,1716693059840,-1285.29,0.0003178,5]
[327948108,1716693059849,-151.0,0.0003178,7]
[327948109,1716693059859,-151.0,0.0003178,7]
[327948110,1716693059869,-866.66,0.0003178,5]
[327948111,1716693059879,-500.0,0.0003178,5]
[327948112,1716693059888,-551.16,0.0003178,5]
[327948113,1716693059898,-706.03,0.0003178,5]
[327948114,1716693059907,-151.0,0.0003178,7]
[327948115,1716693059916,-870.77,0.0003178,5]
[327948116,1716693059926,-500.0,0.0003178,5]
[327948117,1716693059935,-151.0,0.0003178,7]
[327948118,1716693059945,-151.0,0.0003178,7]
[327948119,1716693059955,-695.67,0.0003178,5]
[327948120,1716693059964,-500.0,0.0003178,5]
[327948121,1716693059974,-500.0,0.0003178,5]
[327948122,1716693059983,-151.0,0.0003178,7]
[327948123,1716693059993,-500.0,0.0003178,5]
[327948124,1716693060003,-738.83,0.0003178,5]
[327948125,1716693060013,-500.0,0.0003178,5]
[327948126,1716693060022,-500.0,0.0003178,5]
[327948127,1716693060032,-500.0,0.0003178,5]
[327948128,1716693060041,-500.0,0.0003178,5]
[327948129,1716693060051,-539.12115683,0.0003178,5]
[327948130,1716693060060,-1210.63,0.0003178,5]
[327948131,1716693060070,-500.0,0.0003178,5]
[327948132,1716693060079,-500.0,0.0003178,5]
[327948133,1716693060094,-500.0,0.0003178,5]
[327948134,1716693060108,-500.0,0.0003178,5]
[327948135,1716693060117,-721.2,0.0003178,5]
[327948136,1716693060127,-10798.55,0.0003178,5]
[327948137,1716693060138,-705.67,0.0003178,5]
[327948138,1716693060148,-4067.83,0.0003178,5]
[327948139,1716693060158,-500.0,0.0003178,5]
[327948140,1716693060170,-500.0,0.0003178,5]
[327948141,1716693060180,-1311.14,0.0003178,5]
[327948142,1716693060190,-500.0,0.0003178,5]
[327948143,1716693060199,-500.0,0.0003178,5]
[327948144,1716693060209,-500.0,0.0003178,5]
[327948145,1716693060219,-688.8,0.0003178,5]
[327948146,1716693060228,-690.54,0.0003178,5]
[327948147,1716693060238,-500.0,0.0003178,5]
[327948148,1716693060247,-1045.34,0.0003178,5]
[327948149,1716693060256,-500.0,0.0003178,5]
[327948150,1716693060266,-500.0,0.0003178,5]
[327948151,1716693060276,-1123.07,0.0003178,5]
[327948152,1716693060286,-151.0,0.0003178,7]
[327948153,1716693060295,-500.0,0.0003178,5]
[327948154,1716693060305,-151.0,0.0003178,7]
[327948155,1716693060314,-151.0,0.0003178,7]
[327948156,1716693060324,-391.43455367,0.0003178,5]
[327948157,1716693060333,-153.505251,0.0003178,7]
[327948158,1716693060343,-500.0,0.0003178,5]
[327948159,1716693060351,-151.0,0.0003178,7]
[327948160,1716693060361,-500.0,0.0003178,5]
[327948161,1716693060371,-500.0,0.0003178,5]
[327948162,1716693060380,-917.9,0.0003178,5]
[327948163,1716693060389,-1115.08,0.0003178,5]
[327948164,1716693060399,-500.0,0.0003178,5]
[327948165,1716693060409,-151.0,0.0003178,7]
[327948166,1716693060418,-500.0,0.0003178,5]
[327948167,1716693060427,-500.0,0.0003178,5]
[327948168,1716693060436,-151.0,0.0003178,7]
[327948169,1716693060446,-4585.46,0.0003178,5]
[327948170,1716693060455,-500.0,0.0003178,5]
[327948171,1716693060464,-1405.7,0.0003178,5]
[327948172,1716693060474,-500.0,0.0003178,5]
[327948173,1716693060483,-500.0,0.0003178,5]
[327948174,1716693060492,-500.0,0.0003178,5]
[327948175,1716693060501,-1385.09,0.0003178,5]
[327948176,1716693060511,-1364.57,0.0003178,5]
[327948177,1716693060520,-769.66,0.0003178,5]
[327948178,1716693060530,-151.0,0.0003178,7]
[327948179,1716693060539,-500.0,0.0003178,5]
[327948180,1716693060548,-457.360694,0.0003178,7]
[327948181,1716693060558,-457.360694,0.0003178,7]
[327948182,1716693060568,-500.0,0.0003178,5]
[327948183,1716693060577,-771.12,0.0003178,5]
[327948184,1716693060586,-500.0,0.0003178,5]
[327948185,1716693060595,-151.0,0.0003178,7]
[327948186,1716693060605,-457.360694,0.0003178,7]
[327948187,1716693060614,-612.18,0.0003178,5]
[327948188,1716693060625,-966.24,0.0003178,5]
[327948189,1716693060634,-500.0,0.0003178,5]
[327948190,1716693060643,-457.360694,0.0003178,7]
[327948191,1716693060652,-500.0,0.0003178,5]
[327948192,1716693060661,-839.95,0.0003178,5]
[327948193,1716693060671,-732.61,0.0003178,5]
[327948194,1716693060680,-1150.54,0.0003178,5]
[327948195,1716693060689,-2001.93,0.0003178,5]
[327948196,1716693060698,-151.0,0.0003178,7]
[327948197,1716693060708,-177.794288,0.0003178,7]
[327948198,1716693060717,-500.0,0.0003178,5]
[327948199,1716693060726,-500.0,0.0003178,5]
[327948200,1716693060736,-1184.63,0.0003178,5]
[327948201,1716693060745,-2361.1,0.0003178,5]
[327948202,1716693060756,-349.55695868,0.0003178,5]
[327948203,1716693060767,-1883.43,0.0003178,5]
[327948204,1716693060777,-500.0,0.0003178,5]
[327948205,1716693060787,-1174.64,0.0003178,5]
[327948206,1716693060797,-500.0,0.0003178,5]
[327948207,1716693060809,-500.0,0.0003178,5]
[327948208,1716693060819,-2230.03,0.0003178,5]
[327948209,1716693060829,-2487.98,0.0003178,5]
[327948210,1716693060838,-1994.29,0.0003178,5]
[327948211,1716693060848,-500.0,0.0003178,5]
[327948212,1716693060857,-1311.02,0.0003178,5]
[327948213,1716693060867,-500.0,0.0003178,5]
[327948214,1716693060876,-107.00606764,0.0003178,5]
[327948215,1716693061260,-431.60659171,0.0003178,5]
[327948253,1716693548763,165.79,0.00026977,120]
[327948278,1716694093216,36212.05108487,0.00031,120]
[327948283,1716694231993,-166.86126885,0.00013872,2]
[327948284,1716694232002,-155.33550862,0.00013873,2]
[327948285,1716694232011,-17.52322293,0.00013972,2]
[327948286,1716694232024,-1072.87948852,0.00013972,2]
[327948287,1716694232036,-432.92,0.00013972,2]
[327948288,1716694232047,-374.10903114,0.00013972,2]
[327948289,1716694232056,-151.75,0.00013973,2]
[327948290,1716694232065,-153.65,0.00013973,2]
[327948291,1716694232074,-150.0,0.00019451,2]
[327948292,1716694232084,-201.29923433,0.00019999,2]
[327948293,1716694232095,-325.09234905,0.00019999,2]
[327948294,1716694232197,-363.6,0.00019999,2]
[327948295,1716694232208,-357.36878671,0.00019999,2]
[327948296,1716694232218,-84.57321329,0.00021134,2]
[327948297,1716694232230,-115.32678671,0.00021134,2]
[327948298,1716694232239,-150.99,0.00021396,2]
[327948299,1716694232248,-210.0,0.00021396,2]
[327948300,1716694232257,-547.88186647,0.00021582,2]
[327948301,1716694232267,-499.99,0.00023107,2]
[327948302,1716694232276,-36.69210673,0.00024091,2]
[327948303,1716694232287,-354.89789327,0.00024091,2]
[327948304,1716694232296,-151.75,0.00024224,2]
[327948305,1716694232306,-209.64,0.00024697,2]
[327948306,1716694232318,-5076.04354457,0.00024773,2]
[327948307,1716694232330,-18823.95645543,0.00024773,2]
[327948308,1716694232340,-166.48303334,0.00024812,2]
[327948309,1716694232350,-708.43359996,0.00025,2]
[327948310,1716694232359,-150.0,0.00025287,2]
[327948311,1716694232368,-250.0,0.00025423,2]
[327948312,1716694232379,-250.0,0.0002551,2]
[327948313,1716694232388,-736.95,0.00025692,2]
[327948314,1716694232396,-250.0,0.00025758,2]
[327948315,1716694232406,-8255.75,0.00025915,2]
[327948316,1716694232417,-161.19,0.00026043,2]
[327948317,1716694232428,-391.59,0.00026355,2]
[327948318,1716694232437,-1569.0335137,0.00026722,2]
[327948319,1716694232448,-2522.64994428,0.00026722,2]
[327948320,1716694232494,-6936.01689433,0.00026722,2]
[327948321,1716694232505,-3971.07024,0.00026722,2]
[327948322,1716694232516,-323.99753847,0.00026722,2]
[327948323,1716694232527,-5151.21969045,0.00026722,2]
[327948324,1716694232538,-6088.75217877,0.00026722,2]
[327948325,1716694232547,-163.88,0.00026977,2]
[327948326,1716694232556,-1000.0,0.00027157,2]
[327948327,1716694232565,-169.89724717,0.00027909,2]
[327948328,1716694232574,-6020.97382461,0.00028,2]
[327948332,1716694238042,-1838.89072314,0.00028,2]
[327948334,1716694238052,-155.0,0.00028,2]
[327948336,1716694238063,-416.63635686,0.00028431,2]
[327948355,1716694238366,-320.31364314,0.00028431,2]
[327948356,1716694238376,-259.78595117,0.00028498,2]
[327948357,1716694238387,-391.59,0.00028619,2]
[327948358,1716694238397,-997.34,0.000288,2]
[327948359,1716694238407,-317.47,0.0002899,3]
[327948360,1716694238419,-158.73,0.0002899,3]
[327948361,1716694238431,-476.24,0.0002899,3]
[327948362,1716694238441,-1483.6790455,0.00029,2]
[327948363,1716694238452,-5000.0,0.00029,2]
[327948364,1716694238463,-7021.75502835,0.00029,2]
[327948365,1716694238476,-14532.30720051,0.00029,2]
[327948366,1716694238492,-478445.93777114,0.00029,2]
[327948367,1716694238502,-1078.4199396,0.00029099,2]
[327948368,1716694238513,-320.65170706,0.00029199,2]
[327948369,1716694238523,-1543.47427597,0.00029299,2]
[327948370,1716694238533,-800.16245587,0.00029399,2]
[327948371,1716694238543,-226.01793324,0.000295,3]
[327948372,1716694238553,-169.89724717,0.00029571,2]
[327948374,1716694238563,-11627.17355561,0.00029579,2]
[327948377,1716694238573,-210.8704,0.00029599,2]
[327948378,1716694238583,-2500.0,0.00029599,2]
[327948379,1716694238594,-3420.137,0.00029599,2]
[327948380,1716694238604,-179.64019901,0.000296,2]
[327948381,1716694238614,-209.64,0.00029636,2]
[327948382,1716694238624,-500.0,0.000297,2]
[327948383,1716694238634,-1078.41993953,0.00029731,2]
[327948384,1716694238644,-217.79331283,0.0002979,2]
[327948385,1716694238654,-997.34,0.00029795,2]
[327948386,1716694238664,-162.8,0.000298,2]
[327948387,1716694238674,-2000.0,0.000298,2]
[327948388,1716694238684,-1093.2079,0.00029898,2]
[327948389,1716694238695,-174.9883,0.00029898,2]
[327948390,1716694238704,-2765.7878,0.00029898,2]
[327948391,1716694238714,-477.9674,0.00029898,2]
[327948392,1716694238723,-6662.3053,0.000299,2]
[327948393,1716694238733,-12045.0532,0.000299,2]
[327948394,1716694238743,-1543.47427597,0.0002991,2]
[327948395,1716694238752,-195.43958413,0.00029998,2]
[327948396,1716694238763,-156.51720009,0.00029998,2]
[327948397,1716694238772,-242.21817263,0.00029998,2]
[327948398,1716694238783,-158.20617584,0.00029998,2]
[327948399,1716694238795,-155.40724201,0.00029998,2]
[327948400,1716694238804,-1389.34773158,0.00029998,2]
[327948401,1716694238815,-268.25425004,0.00029998,2]
[327948402,1716694238824,-1141.67254675,0.00029998,2]
[327948403,1716694238834,-365.31975406,0.00029998,2]
[327948404,1716694238844,-160.12286757,0.00029998,2]
[327948405,1716694238854,-170.67232146,0.00029998,2]
[327948406,1716694238864,-155.26137432,0.00029998,2]
[327948407,1716694238874,-347.50998668,0.00029998,2]
[327948408,1716694238884,-1216.87578609,0.00029998,2]
[327948409,1716694238893,-178.88552313,0.00029998,2]
[327948410,1716694238903,-291.25281838,0.00029998,2]
[327948411,1716694238913,-155.27126444,0.00029998,2]
[327948412,1716694238922,-157.37187338,0.00029998,2]
[327948413,1716694238932,-166.66626663,0.00029998,2]
[327948414,1716694238943,-170.8731323,0.00029998,2]
[327948415,1716694238953,-155.48549695,0.00029998,2]
[327948416,1716694238963,-172.0382756,0.00029998,10]
[327948417,1716694238972,-5288.6620406,0.00029998,2]
[327948418,1716694238982,-301.79466021,0.00029998,2]
[327948419,1716694238991,-535.85866797,0.00029998,2]
[327948420,1716694239001,-526.5258434,0.00029998,2]
[327948421,1716694239011,-304.65523355,0.00029998,2]
[327948422,1716694239021,-238.39953495,0.00029998,2]
[327948423,1716694239032,-202.1965617,0.00029998,2]
[327948424,1716694239042,-406.68039471,0.00029998,2]
[327948425,1716694239052,-323.49456937,0.00029998,2]
[327948426,1716694239063,-155.30467737,0.00029998,2]
[327948427,1716694239073,-2776.97105941,0.00029998,2]
[327948428,1716694239083,-4282.22446875,0.00029998,2]
[327948429,1716694239093,-155.31935087,0.00029998,2]
[327948430,1716694239105,-156.20826289,0.00029998,2]
[327948431,1716694239115,-173.92576198,0.00029998,2]
[327948432,1716694239127,-207.06147927,0.00029998,2]
[327948433,1716694239137,-186.92847832,0.00029998,2]
[327948434,1716694239148,-409.21511197,0.00029998,2]
[327948435,1716694239158,-163.14607749,0.00029998,2]
[327948436,1716694239169,-199.48173281,0.00029998,2]
[327948437,1716694239180,-155.29868463,0.00029999,2]
[327948438,1716694239191,-1370.38500727,0.00029999,2]
[327948439,1716694239203,-75184.44118028,0.00029999,2]
[327948440,1716694239214,-800.1624558,0.00029999,2]
[327948441,1716694239225,-5693.61734445,0.0003,2]
[327948442,1716694239236,-2345.12481961,0.0003,4]
[327948443,1716694239247,-23844.69262994,0.0003,4]
[327948444,1716694239259,-997.34,0.0003,2]
[327948445,1716694239269,-207.0,0.0003,2]
[327948446,1716694239280,-318.42,0.0003,2]
[327948447,1716694239291,-320.65170705,0.00030233,2]
[327948448,1716694239302,-634.94,0.0003036,3]
[327948449,1716694239312,-317.46,0.0003036,3]
[327948450,1716694239324,-151.0,0.00030429,2]
[327948451,1716694239334,-1543.47427597,0.00030521,2]
[327948452,1716694239344,-1000.0,0.00030551,2]
[327948453,1716694239354,-800.1624558,0.00030599,2]
[327948454,1716694239365,-870.49,0.00030654,2]
[327948455,1716694239376,-870.49,0.00030654,2]
[327948456,1716694239387,-870.49,0.00030654,2]
[327948457,1716694239400,-997.34,0.0003079,2]
[327948458,1716694239412,-2000.0,0.000308,4]
[327948459,1716694239427,-970.96528651,0.00030874,2]
[327948460,1716694239438,-391.59,0.00030883,2]
[327948461,1716694239449,-997.34,0.00030995,2]
[327948462,1716694239460,-2100.0,0.00031,2]
[327948463,1716694239470,-500.0,0.00031,2]
[327948464,1716694239481,-500.0,0.00031,2]
[327948465,1716694239491,-1612.53851257,0.00031,4]
[327948466,1716694239503,-155.0,0.00031,2]
[327948467,1716694239514,-400.0,0.00031,2]
[327948468,1716694239525,-1543.47427597,0.00031133,2]
[327948469,1716694239536,-736.95,0.00031171,2]
[327948470,1716694239547,-800.1624558,0.00031199,2]
[327948471,1716694239557,-320.65170705,0.00031266,2]
[327948472,1716694239568,-150.58,0.00031396,2]
[327948473,1716694239578,-1271.9176,0.00031405,2]
[327948474,1716694239589,-1343.4362153,0.00031406,3]
[327948475,1716694239600,-172.31197722,0.00031406,2]
[327948476,1716694239611,-10000.0,0.00031406,2]
[327948477,1716694239621,-7500.0,0.00031406,2]
[327948478,1716694239632,-7198.12,0.00031427,5]
[327948479,1716694239642,-804.41739,0.0003146,2]
[327948480,1716694239652,-7322.89,0.00031463,5]
[327948481,1716694239663,-318.42,0.00031475,2]
[327948482,1716694239674,-1053.0,0.000315,2]
[327948483,1716694239685,-7392.98,0.00031501,5]
[327948484,1716694239705,-16728.01966065,0.00031503,2]
[327948485,1716694239718,-867.93215923,0.00031505,4]
[327948486,1716694239729,-332.0,0.00031506,5]
[327948487,1716694239740,-6337.04572246,0.00031506,9]
[327948488,1716694239752,-591.25242361,0.00031506,5]
[327948489,1716694239763,-323.10789927,0.00031506,5]
[327948490,1716694239774,-500.0,0.00031506,5]
[327948491,1716694239786,-500.0,0.00031506,5]
[327948492,1716694239797,-500.0,0.00031506,5]
[327948493,1716694239809,-500.0,0.00031506,5]
[327948494,1716694239820,-500.0,0.00031506,5]
[327948495,1716694239831,-500.0,0.00031506,5]
[327948496,1716694239842,-500.0,0.00031506,5]
[327948497,1716694239853,-500.0,0.00031506,5]
[327948498,1716694239864,-500.0,0.00031506,5]
[327948499,1716694239876,-500.0,0.00031506,5]
[327948500,1716694239887,-500.0,0.00031506,5]
[327948501,1716694239897,-500.0,0.00031506,5]
[327948502,1716694239907,-500.0,0.00031506,5]
[327948503,1716694239918,-500.0,0.00031506,5]
[327948504,1716694239928,-500.0,0.00031506,5]
[327948505,1716694239938,-500.0,0.00031506,5]
[327948506,1716694239949,-500.0,0.00031506,5]
[327948507,1716694239960,-500.0,0.00031506,5]
[327948508,1716694239971,-500.0,0.00031506,5]
[327948509,1716694239981,-237.54284125,0.00031506,5]
[327948510,1716694239992,-534.98216911,0.00031506,5]
[327948511,1716694240002,-500.0,0.00031506,5]
[327948512,1716694240012,-555.55190584,0.00031506,5]
[327948513,1716694240024,-500.0,0.00031506,5]
[327948514,1716694240034,-582.69238464,0.00031506,5]
[327948515,1716694240045,-500.0,0.00031506,5]
[327948516,1716694240056,-500.0,0.00031506,2]
[327948517,1716694240066,-500.0,0.00031506,5]
[327948518,1716694240077,-500.0,0.00031506,5]
[327948519,1716694240087,-190.05471755,0.00031506,5]
[327948520,1716694240098,-500.0,0.00031506,5]
[327948521,1716694240109,-500.0,0.00031506,5]
[327948522,1716694240120,-500.0,0.00031506,5]
[327948523,1716694240132,-500.0,0.00031506,5]
[327948524,1716694240143,-500.0,0.00031506,5]
[327948525,1716694240155,-508.01,0.00031506,5]
[327948526,1716694240165,-500.0,0.00031506,5]
[327948527,1716694240177,-880.77,0.00031506,5]
[327948528,1716694240188,-500.0,0.00031506,5]
[327948529,1716694240200,-500.0,0.00031506,5]
[327948530,1716694240211,-500.0,0.00031506,5]
[327948531,1716694240222,-500.0,0.00031506,5]
[327948532,1716694240233,-500.0,0.00031506,5]
[327948533,1716694240244,-500.0,0.00031506,5]
[327948534,1716694240254,-500.0,0.00031506,5]
[327948535,1716694240265,-500.0,0.00031506,5]
[327948536,1716694240276,-500.0,0.00031506,5]
[327948537,1716694240287,-500.0,0.00031506,5]
[327948538,1716694240299,-500.0,0.00031506,5]
[327948539,1716694240309,-500.0,0.00031506,5]
[327948540,1716694240321,-500.0,0.00031506,5]
[327948541,1716694240332,-500.0,0.00031506,5]
[327948542,1716694240343,-500.0,0.00031506,5]
[327948543,1716694240353,-500.0,0.00031506,5]
[327948544,1716694240364,-500.0,0.00031506,5]
[327948545,1716694240376,-230.17224727,0.00031506,5]
[327948546,1716694240386,-500.0,0.00031506,5]
[327948547,1716694240396,-500.0,0.00031506,5]
[327948548,1716694240406,-500.0,0.00031506,5]
[327948549,1716694240419,-515.31054644,0.00031506,5]
[327948550,1716694240429,-500.0,0.00031506,5]
[327948551,1716694240440,-500.0,0.00031506,5]
[327948552,1716694240451,-500.0,0.00031506,5]
[327948553,1716694240464,-500.0,0.00031506,5]
[327948554,1716694240475,-500.0,0.00031506,5]
[327948555,1716694240485,-500.0,0.00031506,5]
[327948556,1716694240498,-898.4,0.00031506,5]
[327948557,1716694240508,-500.0,0.00031506,5]
[327948558,1716694240519,-500.0,0.00031506,5]
[327948559,1716694240530,-541.84,0.00031506,5]
[327948560,1716694240541,-500.0,0.00031506,5]
[327948561,1716694240551,-500.0,0.00031506,5]
[327948562,1716694240561,-500.0,0.00031506,5]
[327948563,1716694240571,-500.0,0.00031506,5]
[327948564,1716694240581,-500.0,0.00031506,5]
[327948565,1716694240592,-500.0,0.00031506,5]
[327948566,1716694240601,-500.0,0.00031506,5]
[327948567,1716694240611,-500.0,0.00031506,5]
[327948568,1716694240621,-500.0,0.00031506,5]
[327948569,1716694240632,-500.0,0.00031506,5]
[327948570,1716694240643,-300.0,0.00031506,5]
[327948571,1716694240653,-500.0,0.00031506,5]
[327948572,1716694240664,-500.0,0.00031506,5]
[327948573,1716694240674,-500.0,0.00031506,5]
[327948574,1716694240685,-500.0,0.00031506,5]
[327948575,1716694240695,-500.0,0.00031506,5]
[327948576,1716694240705,-500.0,0.00031506,5]
[327948577,1716694240715,-500.0,0.00031506,5]
[327948578,1716694241131,-500.0,0.00031506,5]
[327948579,1716694241156,-500.0,0.00031506,5]
[327948580,1716694241166,-500.0,0.00031506,5]
[327948581,1716694241177,-500.0,0.00031506,5]
[327948582,1716694241187,-500.0,0.00031506,5]
[327948583,1716694241198,-500.0,0.00031506,5]
[327948584,1716694241208,-500.0,0.00031506,5]
[327948585,1716694241218,-500.0,0.00031506,5]
[327948586,1716694241228,-500.0,0.00031506,5]
[327948587,1716694241238,-500.0,0.00031506,5]
[327948588,1716694241248,-500.0,0.00031506,5]
[327948589,1716694241257,-184.36016762,0.00031506,5]
[327948590,1716694241267,-500.0,0.00031506,5]
[327948591,1716694241277,-500.0,0.00031506,5]
[327948592,1716694241287,-500.0,0.00031506,5]
[327948593,1716694241296,-500.0,0.00031506,5]
[327948594,1716694241306,-500.0,0.00031506,5]
[327948595,1716694241316,-500.0,0.00031506,5]
[327948596,1716694241326,-500.0,0.00031506,5]
[327948597,1716694241335,-500.0,0.00031506,5]
[327948598,1716694241345,-500.0,0.00031506,5]
[327948599,1716694241355,-500.0,0.00031506,5]
[327948600,1716694241364,-500.0,0.00031506,5]
[327948601,1716694241374,-500.0,0.00031506,5]
[327948602,1716694241385,-500.0,0.00031506,5]
[327948603,1716694241395,-500.0,0.00031506,5]
[327948604,1716694241405,-576.73,0.00031506,5]
[327948605,1716694241415,-500.0,0.00031506,5]
[327948606,1716694241428,-500.0,0.00031506,5]
[327948607,1716694241438,-500.0,0.00031506,5]
[327948608,1716694241448,-500.0,0.00031506,5]
[327948609,1716694241460,-519.66,0.00031506,5]
[327948610,1716694241469,-500.0,0.00031506,5]
[327948611,1716694241479,-500.0,0.00031506,5]
[327948612,1716694241489,-510.1,0.00031506,5]
[327948613,1716694241500,-500.0,0.00031506,5]
[327948614,1716694241510,-500.0,0.00031506,5]
[327948615,1716694241519,-500.0,0.00031506,5]
[327948616,1716694241529,-500.0,0.00031506,5]
[327948617,1716694241539,-549.27838238,0.00031506,5]
[327948618,1716694241548,-500.0,0.00031506,5]
[327948619,1716694241558,-500.0,0.00031506,5]
[327948620,1716694241568,-500.0,0.00031506,5]
[327948621,1716694241577,-500.0,0.00031506,5]
[327948622,1716694241587,-500.0,0.00031506,5]
[327948623,1716694241597,-500.0,0.00031506,5]
[327948624,1716694241606,-500.0,0.00031506,5]
[327948625,1716694241616,-596.57818709,0.00031506,5]
[327948626,1716694241626,-500.0,0.00031506,5]
[327948627,1716694241636,-500.0,0.00031506,5]
[327948628,1716694241647,-619.27,0.00031506,5]
[327948629,1716694241657,-500.0,0.00031506,2]
[327948630,1716694241667,-500.0,0.00031506,5]
[327948631,1716694241677,-500.0,0.00031506,5]
[327948632,1716694241687,-500.0,0.00031506,5]
[327948633,1716694241697,-500.0,0.00031506,5]
[327948634,1716694241708,-500.0,0.00031506,5]
[327948635,1716694241717,-500.0,0.00031506,5]
[327948636,1716694241727,-500.0,0.00031506,5]
[327948637,1716694241737,-500.0,0.00031506,5]
[327948638,1716694241746,-775.44,0.00031506,5]
[327948639,1716694241757,-500.0,0.00031506,5]
[327948640,1716694241767,-350.00155457,0.00031506,5]
[327948641,1716694241776,-500.0,0.00031506,5]
[327948642,1716694241786,-500.0,0.00031506,5]
[327948643,1716694241796,-500.0,0.00031506,5]
[327948644,1716694241806,-539.07073206,0.00031506,5]
[327948645,1716694241816,-500.0,0.00031506,5]
[327948646,1716694241825,-500.0,0.00031506,5]
[327948647,1716694241835,-549.15,0.00031506,5]
[327948648,1716694241845,-500.0,0.00031506,5]
[327948649,1716694241855,-777.89,0.00031506,5]
[327948650,1716694241865,-500.0,0.00031506,5]
[327948651,1716694241874,-680.35,0.00031506,5]
[327948652,1716694241886,-500.0,0.00031506,5]
[327948653,1716694241896,-500.0,0.00031506,5]
[327948654,1716694241906,-500.0,0.00031506,5]
[327948655,1716694241916,-500.0,0.00031506,5]
[327948656,1716694241926,-500.0,0.00031506,5]
[327948657,1716694241936,-807.88,0.00031506,5]
[327948658,1716694241946,-500.0,0.00031506,5]
[327948659,1716694241956,-500.0,0.00031506,5]
[327948660,1716694241965,-500.0,0.00031506,5]
[327948661,1716694241975,-500.0,0.00031506,5]
[327948662,1716694241985,-500.0,0.00031506,5]
[327948663,1716694241995,-500.0,0.00031506,5]
[327948664,1716694242005,-500.0,0.00031506,5]
[327948665,1716694242016,-500.0,0.00031506,2]
[327948666,1716694242026,-806.72,0.00031506,5]
[327948667,1716694242037,-500.0,0.00031506,5]
[327948668,1716694242046,-500.0,0.00031506,5]
[327948669,1716694242056,-500.0,0.00031506,5]
[327948670,1716694242066,-847.05,0.00031506,5]
[327948671,1716694242075,-500.0,0.00031506,5]
[327948672,1716694242086,-500.0,0.00031506,5]
[327948673,1716694242095,-500.0,0.00031506,5]
[327948674,1716694242105,-500.0,0.00031506,5]
[327948675,1716694242115,-500.0,0.00031506,2]
[327948676,1716694242125,-500.0,0.00031506,5]
[327948677,1716694242136,-500.0,0.00031506,5]
[327948678,1716694242146,-500.0,0.00031506,5]
[327948679,1716694242156,-526.41,0.00031506,5]
[327948681,1716694242165,-1325.6,0.00031506,2]
[327948682,1716694242175,-415.13654353,0.00031506,5]
[327948683,1716694242185,-500.0,0.00031506,5]
[327948684,1716694242195,-500.0,0.00031506,5]
[327948685,1716694242205,-500.0,0.00031506,5]
[327948686,1716694242215,-500.0,0.00031506,5]
[327948687,1716694242225,-522.88,0.00031506,5]
[327948688,1716694242235,-500.0,0.00031506,5]
[327948689,1716694242246,-514.94,0.00031506,5]
[327948690,1716694242255,-500.0,0.00031506,5]
[327948691,1716694242265,-500.0,0.00031506,5]